bitfinex-derivatives/quotes_BTCF0:USTF0_20250514
["timestamp","ask_amount","ask_price","bid_price","bid_amount"]
[1747219948381,0.94582531,103730.0,103720.0,0.00396637]
[1747219948573,0.8271244,103730.0,103720.0,0.10037514]
[1747219948773,0.8271244,103730.0,103720.0,0.16157514]
[1747219948985,1.2698044,103730.0,103720.0,0.16157514]
[1747219949784,1.38850531,103730.0,103720.0,0.16157514]
[1747219950884,1.2698044,103730.0,103720.0,0.16157514]
[1747219951080,1.38850531,103730.0,103720.0,0.16157514]
[1747219951286,1.2698044,103730.0,103720.0,0.16157514]
[1747219951585,1.38850531,103730.0,103720.0,0.10037514]
[1747219951979,1.2698044,103730.0,103720.0,0.10037514]
[1747219952186,1.38850531,103730.0,103720.0,0.10037514]
[1747219953186,1.02770531,103730.0,103720.0,0.46117514]
[1747219954082,0.9082444,103730.0,103720.0,0.52797514]
[1747219954288,0.4663244,103730.0,103720.0,0.64667605]
[1747219954470,0.4663244,103730.0,103720.0,0.71167605]
[1747219955277,0.4663244,103730.0,103720.0,1.04449315]
[1747219955484,0.4663244,103730.0,103720.0,0.71167605]
[1747219956083,0.4663244,103730.0,103720.0,0.87367605]
[1747219956284,0.4663244,103730.0,103720.0,2.37367605]
[1747219956482,0.4663244,103730.0,103720.0,2.25497514]
[1747219957192,0.4663244,103730.0,103720.0,2.09297514]
[1747219960187,0.58502531,103730.0,103720.0,2.02797514]
[1747219960396,0.58502531,103730.0,103720.0,0.10037514]
[1747219960587,0.80646531,103730.0,103720.0,0.10037514]
[1747219960784,1.16726531,103730.0,103720.0,0.10037514]
[1747219966894,1.33832677,103730.0,103720.0,0.10037514]
[1747219970796,0.85882586,103730.0,103720.0,0.52637514]
[1747219970995,0.63738586,103730.0,103720.0,0.59047514]
[1747219971202,1.07894586,103730.0,103720.0,0.59047514]
[1747219972196,0.63738586,103730.0,103720.0,0.59047514]
[1747219972396,0.85758586,103730.0,103720.0,0.59047514]
[1747219972893,0.63738586,103730.0,103720.0,0.59047514]
[1747219973088,0.85746586,103730.0,103720.0,0.70917605]
[1747219973593,0.85746586,103730.0,103720.0,2.20917605]
[1747219973903,0.85746586,103730.0,103720.0,2.09047514]
[1747219974103,0.76004009,103730.0,103720.0,2.09047514]
[1747219975297,0.76004009,103730.0,103720.0,2.02637514]
[1747219975607,0.76004009,103730.0,103720.0,0.52637514]
[1747219975805,0.78004009,103730.0,103720.0,0.16557514]
[1747219975997,0.898741,103730.0,103720.0,0.10037514]
[1747219976806,1.259541,103730.0,103720.0,0.10037514]
[1747219977206,0.78004009,103730.0,103720.0,0.10037514]
[1747219977406,0.898741,103730.0,103720.0,0.10037514]
[1747219977605,0.82510531,103730.0,103720.0,0.10037514]
[1747219978107,0.7064044,103730.0,103720.0,0.10037514]
[1747219978301,0.82510531,103730.0,103720.0,0.10037514]
[1747219979209,1.18590531,103730.0,103720.0,0.10037514]
[1747219981010,0.82510531,103730.0,103720.0,0.10037514]
[1747219981212,1.18590531,103730.0,103720.0,0.10037514]
[1747219981413,1.4051133,103730.0,103720.0,0.10037514]
[1747219981607,1.41073401,103730.0,103720.0,0.10037514]
[1747219982613,1.4051133,103730.0,103720.0,0.10037514]
[1747219982797,1.0243133,103730.0,103720.0,0.10037514]
[1747219983001,1.3851133,103730.0,103720.0,0.10037514]
[1747219985814,1.3851133,103730.0,103720.0,0.10037514]
[1747219986608,1.3951133,103730.0,103720.0,0.10037514]
[1747219987003,1.3951133,103730.0,103720.0,0.00396637]
[1747219987909,0.91561239,103730.0,103720.0,0.10037514]
[1747219988113,0.8042333,103730.0,103720.0,0.10037514]
[1747219988415,1.12897239,103730.0,103720.0,0.52977514]
[1747219988711,0.68553239,103730.0,103720.0,0.52977514]
[1747219988913,1.12885239,103730.0,103720.0,0.52977514]
[1747219989112,1.12885239,103730.0,103720.0,0.59157514]
[1747219989314,1.00707017,103730.0,103720.0,0.59157514]
[1747219989506,1.48657108,103730.0,103720.0,0.16897514]
[1747219989711,1.12577108,103730.0,103720.0,0.16897514]
[1747219990805,1.48657108,103730.0,103720.0,0.16897514]
[1747219991009,1.12577108,103730.0,103720.0,0.16897514]
[1747219995609,1.00707017,103730.0,103720.0,0.10037514]
[1747219996011,1.12577108,103730.0,103720.0,0.10037514]
[1747219996417,1.48657108,103730.0,103720.0,0.00396637]
[1747219996719,1.49657108,103730.0,103720.0,0.00396637]
[1747219996913,1.37787017,103730.0,103720.0,0.00396637]
[1747219997306,1.49657108,103730.0,103720.0,0.00396637]
[1747220000021,1.56078382,103730.0,103720.0,0.00396637]
[1747220002526,1.56078382,103730.0,103720.0,0.00413925]
[1747220003219,1.55078382,103730.0,103720.0,0.00413925]
[1747220003415,1.75078382,103730.0,103720.0,0.00413925]
[1747220004924,1.75640453,103730.0,103720.0,0.00413925]
[1747220005520,1.63770362,103730.0,103720.0,0.00413925]
[1747220005920,1.75078382,103730.0,103720.0,0.00413925]
[1747220010427,1.63208291,103730.0,103720.0,0.00413925]
[1747220010934,1.89692248,103730.0,103720.0,0.00413925]
[1747220011124,1.89692248,103730.0,103720.0,0.06793925]
[1747220011733,1.58026157,103730.0,103720.0,0.16434802]
[1747220011932,1.25360248,103730.0,103720.0,0.16434802]
[1747220012233,1.70256248,103730.0,103720.0,0.16434802]
[1747220013630,1.70256248,103730.0,103720.0,0.22554802]
[1747220014026,1.34176248,103730.0,103720.0,0.22554802]
[1747220014232,1.22306157,103730.0,103720.0,0.22554802]
[1747220014528,0.89280248,103730.0,103720.0,0.22554802]
[1747220014734,1.34168248,103730.0,103720.0,0.22554802]
[1747220015030,1.19554382,103730.0,103720.0,0.22554802]
[1747220015936,0.74666382,103730.0,103720.0,0.22554802]
[1747220016231,1.19526382,103730.0,103720.0,0.22554802]
[1747220017526,1.19494382,103730.0,103720.0,0.22554802]
[1747220017726,1.07624291,103730.0,103720.0,0.22554802]
[1747220017927,1.19494382,103730.0,103720.0,0.22554802]
[1747220018231,1.07620291,103730.0,103720.0,0.58634802]
[1747220018726,1.07616291,103730.0,103720.0,0.58634802]
[1747220021835,1.01283265,103730.0,103720.0,0.58634802]
[1747220023333,1.09094547,103730.0,103720.0,0.58634802]
[1747220026338,1.09656618,103730.0,103720.0,0.58634802]
[1747220026531,1.09656618,103730.0,103720.0,0.52514802]
[1747220026532,1.26656618,103730.0,103720.0,0.52514802]
[1747220026733,1.62736618,103730.0,103720.0,0.10054802]
[1747220026928,1.54925336,103730.0,103720.0,0.00413925]
[1747220027328,1.62174547,103730.0,103720.0,0.00413925]
[1747220028230,1.62736618,103730.0,103720.0,0.00413925]
[1747220028435,1.54925336,103730.0,103720.0,0.00413925]
[1747220028640,1.62736618,103730.0,103720.0,0.00413925]
[1747220029032,1.69069631,103730.0,103720.0,0.00413925]
[1747220029229,1.73164822,103730.0,103720.0,0.00413925]
[1747220034345,1.75038395,103730.0,103720.0,0.00413925]
[1747220035048,1.63131922,103730.0,103720.0,0.00413925]
[1747220035345,1.75038395,103730.0,103720.0,0.00413925]
[1747220037041,1.63131922,103730.0,103720.0,0.00413925]
[1747220037247,1.75038395,103730.0,103720.0,0.00413925]
[1747220037547,1.75600466,103730.0,103720.0,0.00413925]
[1747220038449,1.75038395,103730.0,103720.0,0.00413925]
[1747220038637,1.60424529,103730.0,103720.0,0.00413925]
[1747220040545,1.48518056,103730.0,103720.0,0.00413925]
[1747220040751,1.60424529,103730.0,103720.0,0.00413925]
[1747220040949,0.67618056,103730.0,103720.0,0.10054802]
[1747220041144,0.50618056,103730.0,103720.0,0.46134802]
[1747220041343,0.95298056,103730.0,103720.0,0.52424802]
[1747220041845,0.95302056,103730.0,103720.0,0.58744802]
[1747220042049,0.95302056,103730.0,103720.0,0.65324802]
[1747220043042,1.01139039,103730.0,103720.0,0.65324802]
[1747220043242,1.01139039,103730.0,103720.0,0.58744802]
[1747220043444,1.13607583,103730.0,103720.0,0.52424802]
[1747220043647,0.68923583,103730.0,103720.0,0.52424802]
[1747220043842,1.13575583,103730.0,103720.0,0.52424802]
[1747220044546,1.13013512,103730.0,103720.0,0.52424802]
[1747220045040,1.13013512,103730.0,103720.0,0.16344802]
[1747220046645,1.01107039,103730.0,103720.0,0.16344802]
[1747220046846,1.13013512,103730.0,103720.0,0.16344802]
[1747220047651,1.01107039,103730.0,103720.0,0.52424802]
[1747220047854,0.78763039,103730.0,103720.0,0.89862985]
[1747220048051,0.56455039,103730.0,103720.0,0.89862985]
[1747220048249,0.56455039,103730.0,103720.0,0.77956512]
[1747220048643,0.56455039,103730.0,103720.0,0.89862985]
[1747220049150,0.56455039,103730.0,103720.0,1.02862985]
[1747220049340,0.50215039,103730.0,103720.0,1.02862985]
[1747220049656,0.43565039,103730.0,103720.0,0.89862985]
[1747220049845,0.49835039,103730.0,103720.0,0.91212985]
[1747220050152,0.49835039,103730.0,103720.0,1.07412985]
[1747220050354,0.49835039,103730.0,103720.0,2.57412985]
[1747220050951,0.49835039,103730.0,103720.0,2.45506512]
[1747220051252,0.49835039,103730.0,103720.0,2.53316447]
[1747220052347,0.47376236,103730.0,103720.0,2.53316447]
[1747220053352,0.41106236,103730.0,103720.0,2.66316447]
[1747220053852,0.41106236,103730.0,103720.0,2.74126382]
[1747220054055,0.36285876,103730.0,103720.0,3.08767182]
[1747220054445,0.36285876,103730.0,103720.0,2.83767182]
[1747220055257,0.33921129,103740.0,103730.0,0.1927985]
[1747220055555,0.29101539,103740.0,103730.0,1.16555785]
[1747220055856,0.29101539,103740.0,103730.0,2.66555785]
[1747220056154,0.29101539,103740.0,103730.0,2.82755785]
[1747220056356,0.29201539,103740.0,103730.0,2.92395732]
[1747220056848,0.3656196,103740.0,103730.0,2.92395732]
[1747220057353,0.3656196,103740.0,103730.0,2.84585797]
[1747220057546,0.3656196,103740.0,103730.0,2.92395732]
[1747220058056,0.3656196,103740.0,103730.0,2.84585797]
[1747220058256,0.3656196,103740.0,103730.0,2.92395732]
[1747220058453,0.1728302,103740.0,103730.0,2.92395732]
[1747220058660,0.1728302,103740.0,103730.0,3.02035732]
[1747220058850,0.37695029,103750.0,103740.0,0.19278]
[1747220059051,0.12278249,103750.0,103740.0,0.9701787]
[1747220059354,0.31554389,103750.0,103740.0,1.4519707]
[1747220059751,0.31554389,103750.0,103740.0,1.54837017]
[1747220059951,0.31854389,103750.0,103740.0,1.54837017]
[1747220060957,0.1957614,103750.0,103740.0,1.47027082]
[1747220061349,0.1957614,103750.0,103740.0,2.97027082]
[1747220062067,0.1957614,103750.0,103740.0,3.27193017]
[1747220062357,0.1957614,103750.0,103740.0,3.19383082]
[1747220062562,0.1957614,103750.0,103740.0,3.09743882]
[1747220062860,0.2586614,103750.0,103740.0,3.09743882]
[1747220063461,0.3224614,103750.0,103740.0,3.09743882]
[1747220067252,0.3224614,103750.0,103740.0,2.87379882]
[1747220067451,0.3224614,103750.0,103740.0,3.09711882]
[1747220067862,0.3224614,103750.0,103740.0,3.10702017]
[1747220068163,0.3224614,103750.0,103740.0,2.94502017]
[1747220077358,0.3224614,103750.0,103740.0,3.02311952]
[1747220079564,0.3224614,103750.0,103740.0,2.94502017]
[1747220080869,0.3224614,103750.0,103740.0,3.02311952]
[1747220081468,0.3224614,103750.0,103740.0,2.94502017]
[1747220082270,0.3224614,103750.0,103740.0,3.24302017]
[1747220082870,0.3224614,103750.0,103740.0,3.16492082]
[1747220083068,0.3224614,103750.0,103740.0,3.24302017]
[1747220085178,0.3224614,103750.0,103740.0,3.32111952]
[1747220086376,0.3224614,103750.0,103740.0,3.24302017]
[1747220087566,0.3224614,103750.0,103740.0,2.94160082]
[1747220087773,0.40056075,103750.0,103740.0,2.74759947]
[1747220088070,0.40056075,103750.0,103740.0,2.16347947]
[1747220088578,0.3224614,103750.0,103740.0,0.66347947]
[1747220088969,0.3224614,103750.0,103740.0,2.16347947]
[1747220089669,0.3224614,103750.0,103740.0,0.66347947]
[1747220090477,0.5433814,103750.0,103740.0,0.66347947]
[1747220091978,0.5433814,103750.0,103740.0,0.64997947]
[1747220092380,0.5433814,103750.0,103740.0,0.72807882]
[1747220101388,0.5433814,103750.0,103740.0,0.78987882]
[1747220103083,0.5433814,103750.0,103740.0,0.71177947]
[1747220103385,0.5433814,103750.0,103740.0,0.78987882]
[1747220103991,0.6027814,103750.0,103740.0,0.78987882]
[1747220105683,0.6027814,103750.0,103740.0,0.98797817]
[1747220105890,0.3224614,103750.0,103740.0,1.47327817]
[1747220106290,0.2586614,103750.0,103740.0,1.47327817]
[1747220106591,0.1957614,103750.0,103740.0,1.69187817]
[1747220106988,0.2602614,103750.0,103740.0,1.70537817]
[1747220107295,0.2602614,103750.0,103740.0,3.36737817]
[1747220107486,0.1957614,103750.0,103740.0,3.36737817]
[1747220107889,0.1957614,103750.0,103740.0,3.3819418]
[1747220109499,0.2597614,103750.0,103740.0,3.3819418]
[1747220114297,0.1957614,103750.0,103740.0,3.3819418]
[1747220115392,0.1957614,103750.0,103740.0,3.38290817]
[1747220117887,0.2583614,103750.0,103740.0,3.38290817]
[1747220119305,0.2208756,103760.0,103750.0,0.1927614]
[1747220119597,0.4762299,103760.0,103750.0,1.2457201]
[1747220119802,0.4762299,103760.0,103750.0,1.16762075]
[1747220120098,0.4144299,103760.0,103750.0,2.76401093]
[1747220120308,0.4733299,103760.0,103750.0,2.76401093]
[1747220120494,0.4773299,103760.0,103750.0,2.76401093]
[1747220120798,0.4803299,103760.0,103750.0,2.76401093]
[1747220121295,0.4803299,103760.0,103750.0,2.68591158]
[1747220121491,0.4803299,103760.0,103750.0,2.76401093]
[1747220122891,0.4321401,103760.0,103750.0,2.76401093]
[1747220123194,0.3839543,103760.0,103750.0,2.76401093]
[1747220130900,0.3839543,103760.0,103750.0,2.77751093]
[1747220135413,0.3839543,103760.0,103750.0,2.63861158]
[1747220135705,0.3839543,103760.0,103750.0,2.71671093]
[1747220136007,0.3839543,103760.0,103750.0,2.71535093]
[1747220136505,0.3839543,103760.0,103750.0,2.65445093]
[1747220136705,0.3839543,103760.0,103750.0,2.43645093]
[1747220136906,0.3839543,103760.0,103750.0,2.65445093]
[1747220137220,0.3839543,103760.0,103750.0,2.22835158]
[1747220137506,0.82285365,103760.0,103750.0,0.10989018]
[1747220137709,0.758193,103760.0,103750.0,0.10989018]
[1747220137905,0.68009365,103760.0,103750.0,0.10989018]
[1747220138111,1.04089365,103760.0,103750.0,0.10989018]
[1747220138706,1.118993,103760.0,103750.0,0.10989018]
[1747220138904,1.168993,103760.0,103750.0,0.01459018]
[1747220139104,1.09089365,103760.0,103750.0,0.01459018]
[1747220139307,0.51205365,103760.0,103750.0,0.01459018]
[1747220139511,0.48218444,103760.0,103750.0,0.64625093]
[1747220140015,0.48218444,103760.0,103750.0,0.63275093]
[1747220140312,0.48218444,103760.0,103750.0,0.55465158]
[1747220143716,0.3839543,103760.0,103750.0,0.55465158]
[1747220144303,0.3839543,103760.0,103750.0,0.77275093]
[1747220144508,0.3839543,103760.0,103750.0,0.83225093]
[1747220144707,0.3250543,103760.0,103750.0,0.83225093]
[1747220144913,0.3250543,103760.0,103750.0,0.89015093]
[1747220145218,0.3250543,103760.0,103750.0,2.39015093]
[1747220145909,0.1323,103760.0,103750.0,2.40365093]
[1747220146116,0.3250428,103760.0,103750.0,2.62169093]
[1747220147607,0.3250428,103760.0,103750.0,2.54359158]
[1747220147806,0.3250428,103760.0,103750.0,2.62169093]
[1747220149329,0.3250428,103760.0,103750.0,2.56379093]
[1747220150125,0.3250428,103760.0,103750.0,2.62169093]
[1747220152241,0.3250428,103760.0,103750.0,2.54359158]
[1747220152525,0.3250428,103760.0,103750.0,2.62169093]
[1747220154327,0.3884428,103760.0,103750.0,2.68019093]
[1747220156728,0.3250428,103760.0,103750.0,2.68019093]
[1747220159927,0.3854428,103760.0,103750.0,2.68019093]
[1747220161324,0.3250428,103760.0,103750.0,2.68019093]
[1747220162928,0.1323,103760.0,103750.0,2.75829028]
[1747220163131,0.3250428,103760.0,103750.0,2.75829028]
[1747220163935,0.1323,103760.0,103750.0,2.68019093]
[1747220164226,0.009,103760.0,103750.0,2.75829028]
[1747220164431,0.3062242,103770.0,103760.0,0.1927428]
[1747220164639,0.3062242,103770.0,103760.0,0.9767415]
[1747220164932,0.3062242,103770.0,103760.0,1.0325415]
[1747220165127,0.3062242,103770.0,103760.0,1.12892239]
[1747220165533,0.43548974,103780.0,103770.0,0.1927242]
[1747220165726,0.55268974,103780.0,103770.0,0.94752355]
[1747220165927,0.50450894,103780.0,103770.0,2.44752355]
[1747220166128,0.50450894,103780.0,103770.0,2.54388587]
[1747220167022,0.46132834,103780.0,103770.0,2.54388587]
[1747220167248,0.41313584,103780.0,103770.0,2.62198522]
[1747220167426,0.41313584,103780.0,103770.0,2.54388587]
[1747220167936,0.41613584,103780.0,103770.0,2.54388587]
[1747220168740,0.41613584,103780.0,103770.0,2.46578652]
[1747220168923,0.41613584,103780.0,103770.0,2.54388587]
[1747220169123,0.47353584,103780.0,103770.0,2.76184587]
[1747220169939,0.47353584,103780.0,103770.0,2.77534587]
[1747220170436,0.3753057,103780.0,103770.0,2.77534587]
[1747220170827,0.3753057,103780.0,103770.0,2.78515858]
[1747220173745,0.3753057,103780.0,103770.0,2.70705923]
[1747220173948,0.3753057,103780.0,103770.0,2.78515858]
[1747220178443,0.3753057,103780.0,103770.0,1.97066232]
[1747220178645,0.7494244,103780.0,103770.0,0.10986232]
[1747220179441,0.67132505,103780.0,103770.0,0.10986232]
[1747220180053,1.03212505,103780.0,103770.0,0.10986232]
[1747220180552,0.5932257,103780.0,103770.0,0.47066232]
[1747220182062,0.5932257,103780.0,103770.0,0.45716232]
[1747220182353,0.67132505,103780.0,103770.0,0.45716232]
[1747220183955,0.74489957,103780.0,103770.0,0.45716232]
[1747220185754,0.74489957,103780.0,103770.0,0.09636232]
[1747220188550,0.76503036,103780.0,103770.0,0.28908652]
[1747220188753,0.76503036,103780.0,103770.0,0.09636232]
[1747220190645,0.84312971,103780.0,103770.0,0.09636232]
[1747220194058,0.84312971,103780.0,103770.0,0.10326232]
[1747220197266,0.76503036,103780.0,103770.0,0.29598652]
[1747220197459,0.76503036,103780.0,103770.0,0.71758652]
[1747220198349,0.76503036,103780.0,103770.0,0.46406232]
[1747220199859,0.84312971,103780.0,103770.0,0.46406232]
[1747220202058,0.84312971,103780.0,103770.0,0.65678652]
[1747220203160,0.84312971,103780.0,103770.0,0.71398652]
[1747220203459,0.76503036,103780.0,103770.0,0.71398652]
[1747220203861,0.84312971,103780.0,103770.0,0.52126232]
[1747220204664,0.76955519,103780.0,103770.0,0.52126232]
[1747220209263,0.76955519,103780.0,103770.0,0.71398652]
[1747220210255,0.69145584,103780.0,103770.0,0.77098652]
[1747220212468,0.83394101,103780.0,103770.0,0.77098652]
[1747220217367,0.79410754,103780.0,103770.0,0.77098652]
[1747220220164,0.71600819,103780.0,103770.0,0.77098652]
[1747220220573,0.43868819,103780.0,103770.0,1.03388587]
[1747220221272,0.43868819,103780.0,103770.0,2.40388587]
[1747220221566,0.43868819,103780.0,103770.0,0.90388587]
[1747220221769,0.41423975,103780.0,103770.0,0.90388587]
[1747220221972,0.41423975,103780.0,103770.0,2.40388587]
[1747220222171,0.41423975,103780.0,103770.0,2.32578652]
[1747220222772,0.47473975,103780.0,103770.0,2.32578652]
[1747220224972,0.41423975,103780.0,103770.0,2.76468587]
[1747220225875,0.38963272,103780.0,103770.0,2.76468587]
[1747220228574,0.38963272,103780.0,103770.0,2.68658652]
[1747220228871,0.38963272,103780.0,103770.0,2.76468587]
[1747220230864,0.54336677,103780.0,103770.0,2.76468587]
[1747220233261,0.54336677,103780.0,103770.0,2.68658652]
[1747220233465,0.54336677,103780.0,103770.0,2.76468587]
[1747220234670,0.54336677,103780.0,103770.0,2.77468587]
[1747220235379,0.38963272,103780.0,103770.0,2.77468587]
[1747220235580,0.38963272,103780.0,103770.0,2.77565224]
[1747220237279,0.36564124,103790.0,103780.0,0.1927057]
[1747220237591,0.67644624,103790.0,103780.0,0.80280505]
[1747220237968,0.67644624,103790.0,103780.0,0.89916737]
[1747220238777,0.68144624,103790.0,103780.0,0.89916737]
[1747220238974,0.68544624,103790.0,103780.0,0.89916737]
[1747220239679,0.58711219,103790.0,103780.0,0.89916737]
[1747220241082,0.53893699,103790.0,103780.0,0.89916737]
[1747220241874,0.53893699,103790.0,103780.0,0.90606737]
[1747220242484,0.53893699,103790.0,103780.0,0.91606737]
[1747220243184,0.59403699,103790.0,103780.0,0.91606737]
[1747220243686,0.4712545,103790.0,103780.0,0.91606737]
[1747220245290,0.4712545,103790.0,103780.0,1.27686737]
[1747220250490,0.4712545,103790.0,103780.0,1.14186802]
[1747220250692,0.4712545,103790.0,103780.0,1.21996737]
[1747220255500,0.4712545,103790.0,103780.0,1.14186802]
[1747220255697,0.4712545,103790.0,103780.0,1.20996737]
[1747220263100,0.4712545,103790.0,103780.0,1.01756802]
[1747220263605,0.4712545,103790.0,103780.0,1.07516802]
[1747220265390,0.4712545,103790.0,103780.0,1.12956802]
[1747220265905,0.4712545,103790.0,103780.0,1.20766737]
[1747220268507,0.4712545,103790.0,103780.0,1.12956802]
[1747220268708,0.4712545,103790.0,103780.0,1.20766737]
[1747220271406,0.56944415,103790.0,103780.0,1.20766737]
[1747220273011,0.52126935,103790.0,103780.0,1.43576672]
[1747220273201,0.46616935,103790.0,103780.0,1.34446672]
[1747220275005,0.46616935,103790.0,103780.0,1.26636737]
[1747220275711,0.46616935,103790.0,103780.0,1.18826802]
[1747220275902,0.46616935,103790.0,103780.0,1.26636737]
[1747220280614,0.22528965,103790.0,103780.0,1.48446672]
[1747220281108,0.10718965,103790.0,103780.0,1.64646672]
[1747220281509,0.47653229,103800.0,103790.0,0.1926871]
[1747220281710,0.47653229,103800.0,103790.0,0.95388645]
[1747220281913,0.47653229,103800.0,103790.0,2.45388645]
[1747220282105,0.47653229,103800.0,103790.0,2.55023948]
[1747220282415,0.42836509,103800.0,103790.0,2.55023948]
[1747220283713,0.43136509,103800.0,103790.0,2.41023948]
[1747220283915,0.43336509,103800.0,103790.0,2.55023948]
[1747220284108,0.43336509,103800.0,103790.0,2.33214013]
[1747220284309,0.43336509,103800.0,103790.0,2.54023948]
[1747220284513,0.43336509,103800.0,103790.0,2.56462759]
[1747220285502,0.24068249,103800.0,103790.0,2.56462759]
[1747220285706,0.3105685,103800.0,103790.0,2.56462759]
[1747220285917,0.14594515,103810.0,103800.0,0.1926685]
[1747220285918,0.29044285,103810.0,103800.0,0.1926685]
[1747220286113,0.54294569,103820.0,103800.0,1.084094]
[1747220286317,0.73559309,103820.0,103810.0,0.80274935]
[1747220286706,0.73559309,103820.0,103810.0,0.72465]
[1747220286910,0.73559309,103820.0,103810.0,0.80274935]
[1747220287111,0.73559309,103820.0,103810.0,0.89907918]
[1747220288411,0.51831309,103820.0,103810.0,0.89907918]
[1747220288612,0.51931309,103820.0,103810.0,0.89907918]
[1747220289221,0.4544306,103820.0,103810.0,0.89907918]
[1747220290120,0.4544306,103820.0,103810.0,0.71457983]
[1747220291313,0.5092306,103820.0,103810.0,0.71457983]
[1747220294417,0.58732995,103820.0,103810.0,0.71457983]
[1747220294618,0.58732995,103820.0,103810.0,0.16112983]
[1747220294839,0.6654293,103820.0,103810.0,0.10322983]
[1747220295012,1.1225533,103820.0,103810.0,0.0069]
[1747220295217,1.8069533,103820.0,103810.0,0.0069]
[1747220295518,0.1926685,103800.0,103790.0,0.61287935]
[1747220295707,0.48792785,103800.0,103790.0,0.61287935]
[1747220295913,0.59992785,103800.0,103790.0,0.70920454]
[1747220296124,0.5218285,103800.0,103790.0,0.70920454]
[1747220296318,0.59992785,103800.0,103790.0,0.70920454]
[1747220296521,0.59992785,103800.0,103790.0,0.65270454]
[1747220296825,0.59992785,103800.0,103790.0,0.65670554]
[1747220297825,0.59992785,103800.0,103790.0,0.65470554]
[1747220298026,0.59992785,103800.0,103790.0,0.70910554]
[1747220298329,0.5218285,103800.0,103790.0,0.70910554]
[1747220298523,0.5756285,103800.0,103790.0,0.70710554]
[1747220307429,0.5756285,103800.0,103790.0,0.78520489]
[1747220309023,0.5756285,103800.0,103790.0,0.70710554]
[1747220309432,0.5756285,103800.0,103790.0,0.65270554]
[1747220309624,0.58124921,103800.0,103790.0,0.65270554]
[1747220310324,0.65934856,103800.0,103790.0,0.65270554]
[1747220310732,0.65372785,103800.0,103790.0,0.65270554]
[1747220310929,0.5756285,103800.0,103790.0,0.70940554]
[1747220314138,0.3584685,103800.0,103790.0,0.84160489]
[1747220314333,0.5755085,103800.0,103790.0,0.89590489]
[1747220316435,0.5755085,103800.0,103790.0,0.53510489]
[1747220316635,0.5755085,103800.0,103790.0,0.89590489]
[1747220317930,0.3584685,103800.0,103790.0,0.89590489]
[1747220319640,0.1926685,103800.0,103790.0,0.99590489]
[1747220320031,0.4457641,103810.0,103800.0,0.1926685]
[1747220320239,0.4457641,103810.0,103800.0,0.79826785]
[1747220320643,0.4457641,103810.0,103800.0,0.8946116]
[1747220321643,0.4467641,103810.0,103800.0,0.8946116]
[1747220322144,0.4487641,103810.0,103800.0,0.8946116]
[1747220325848,0.4005976,103810.0,103800.0,0.8946116]
[1747220326054,0.2438319,103810.0,103800.0,1.09271095]
[1747220326756,0.003,103810.0,103800.0,1.09271095]
[1747220327155,0.19565,103810.0,103800.0,1.25471095]
[1747220327362,0.003,103810.0,103800.0,1.25471095]
[1747220327654,0.19565,103810.0,103800.0,1.25471095]
[1747220327853,0.002,103810.0,103800.0,1.25471095]
[1747220328046,0.4482289,103820.0,103810.0,0.19265]
[1747220328246,0.4482289,103820.0,103810.0,0.79654935]
[1747220328647,0.4482289,103820.0,103810.0,0.89288382]
[1747220329151,0.4502289,103820.0,103810.0,0.89288382]
[1747220330750,0.4512289,103820.0,103810.0,0.89288382]
[1747220333459,0.4512289,103820.0,103810.0,2.39288382]
[1747220337165,0.4512289,103820.0,103810.0,2.31478447]
[1747220337556,0.5048289,103820.0,103810.0,2.31478447]
[1747220341062,0.5048289,103820.0,103810.0,2.20458447]
[1747220343464,0.5048289,103820.0,103810.0,0.70458447]
[1747220344056,0.5048289,103820.0,103810.0,2.20458447]
[1747220344258,0.5048289,103820.0,103810.0,0.70458447]
[1747220344865,0.5048289,103820.0,103810.0,0.45713447]
[1747220344866,0.6610276,103820.0,103810.0,0.45713447]
[1747220345563,0.58292825,103820.0,103810.0,0.45713447]
[1747220345867,0.19265,103810.0,103800.0,0.5534685]
[1747220346169,0.65180935,103810.0,103800.0,0.64979369]
[1747220348562,0.65180935,103810.0,103800.0,0.45712519]
[1747220348766,0.65180935,103810.0,103800.0,0.64979369]
[1747220349263,0.65180935,103810.0,103800.0,0.09632519]
[1747220349459,0.65180935,103810.0,103800.0,0.45712519]
[1747220350769,0.86856935,103810.0,103800.0,0.45712519]
[1747220351769,0.86856935,103810.0,103800.0,0.64979369]
[1747220352670,0.86856935,103810.0,103800.0,0.09632519]
[1747220352873,0.86856935,103810.0,103800.0,0.45712519]
[1747220353572,0.79584935,103810.0,103800.0,0.09632519]
[1747220353869,0.1926685,103800.0,103790.0,0.41909325]
[1747220354071,0.43966785,103800.0,103790.0,0.41909325]
[1747220354257,0.43966785,103800.0,103790.0,0.46002772]
[1747220355273,0.43966785,103800.0,103790.0,0.46202772]
[1747220355463,0.43966785,103800.0,103790.0,0.46106135]
[1747220355873,0.43966785,103800.0,103790.0,0.46306135]
[1747220356256,0.43966785,103800.0,103790.0,0.10226135]
[1747220356461,0.5177672,103800.0,103790.0,0.10226135]
[1747220356666,0.52736676,103800.0,103790.0,0.10226135]
[1747220356961,0.44926741,103800.0,103790.0,0.10226135]
[1747220358269,0.37116806,103800.0,103790.0,0.10226135]
[1747220358475,0.44926741,103800.0,103790.0,0.51536135]
[1747220360071,0.44926741,103800.0,103790.0,0.15456135]
[1747220360774,0.44926741,103800.0,103790.0,0.51536135]
[1747220360977,0.52278079,103800.0,103790.0,0.51536135]
[1747220361273,0.52278079,103800.0,103790.0,0.51336135]
[1747220361975,1.31802414,103800.0,103790.0,0.00392688]
[1747220362381,1.05802414,103800.0,103790.0,0.00392688]
[1747220362561,1.05802414,103800.0,103790.0,0.00192688]
[1747220362968,1.05902414,103800.0,103790.0,0.00192688]
[1747220363379,1.06102414,103800.0,103790.0,0.00192688]
[1747220364079,1.31102414,103800.0,103790.0,8e-08]
[1747220365881,1.38912349,103800.0,103790.0,8e-08]
[1747220366083,1.48714279,103800.0,103790.0,8e-08]
[1747220366380,1.40904344,103800.0,103790.0,8e-08]
[1747220366980,1.40904344,103800.0,103790.0,5e-08]
[1747220367477,1.41104344,103800.0,103790.0,5e-08]
[1747220368978,1.48914279,103800.0,103790.0,5e-08]
[1747220369280,1.41104344,103800.0,103790.0,5e-08]
[1747220369672,1.5001461,103800.0,103790.0,5e-08]
[1747220371079,0.1927057,103780.0,103770.0,0.0547]
[1747220371283,0.7823444,103780.0,103770.0,0.0547]
[1747220371480,1.0218444,103780.0,103770.0,0.0547]
[1747220372284,1.0218444,103780.0,103770.0,0.0567]
[1747220372585,0.8656457,103780.0,103770.0,0.0567]
[1747220372886,1.0218444,103780.0,103770.0,0.0567]
[1747220373281,1.03618529,103780.0,103770.0,0.0567]
[1747220373583,1.03818529,103780.0,103770.0,0.0567]
[1747220373785,1.0238444,103780.0,103770.0,0.0567]
[1747220374277,1.3846444,103780.0,103770.0,0.0567]
[1747220375584,1.3856444,103780.0,103770.0,0.0547]
[1747220376587,0.1927428,103760.0,103750.0,0.36272762]
[1747220376776,0.70404215,103760.0,103750.0,0.46622762]
[1747220376982,0.81014215,103760.0,103750.0,0.56258994]
[1747220377396,0.86034215,103760.0,103750.0,0.56258994]
[1747220378100,0.86034215,103760.0,103750.0,0.56658994]